[Event "Titled Tuesday Blitz May 16 Late 2023"]
[White "Alexikov, Alexander"]
[Black "Soham Kamotra"]
[WhiteFideId "14103958"]
[BlackFideId "46647490"]
[WhiteElo "2186"]
[BlackElo "2209"]
[Result "0-1"]
[Round "01"]
[TimeControl "180+2"]
[Date "2023.05.16"]
[WhiteClock "0:00:00"]
[BlackClock "0:00:11"]

1. e4 {[%clk 0:02:58]}  Nf6 {[%clk 0:02:58]} 2. e5 {[%clk 0:02:55]}  Nd5 {[%clk 0:02:56]} 3. d4 {[%clk 0:02:55]}  d6 {[%clk 0:02:53]} 4. Nf3 {[%clk 0:02:54]}  c6 {[%clk 0:02:51]} 5. h3 {[%clk 0:02:49]}  dxe5 {[%clk 0:02:48]} 6. Nxe5 {[%clk 0:02:48]}  Bf5 {[%clk 0:02:49]} 7. a3 {[%clk 0:02:42]}  e6 {[%clk 0:02:48]} 8. c4 {[%clk 0:02:38]}  Nf6 {[%clk 0:02:45]} 9. Nc3 {[%clk 0:02:36]}  Nbd7 {[%clk 0:02:45]} 10. Be3 {[%clk 0:02:34]}  Bd6 {[%clk 0:02:33]} 11. g4 {[%clk 0:02:15]}  Bg6 {[%clk 0:02:13]} 12. f4 {[%clk 0:02:14]}  c5 {[%clk 0:01:45]} 13. Bg2 {[%clk 0:02:03]}  cxd4 {[%clk 0:01:32]} 14. Bxd4 {[%clk 0:01:59]}  Qb8 {[%clk 0:00:58]} 15. Qe2 {[%clk 0:01:51]}  O-O {[%clk 0:00:47]} 16. Rd1 {[%clk 0:01:46]}  Rd8 {[%clk 0:00:46]} 17. Nb5 {[%clk 0:01:34]}  Bc5 {[%clk 0:00:42]} 18. Bxc5 {[%clk 0:01:08]}  Nxc5 {[%clk 0:00:42]} 19. O-O {[%clk 0:01:04]}  a6 {[%clk 0:00:33]} 20. Nc3 {[%clk 0:01:00]}  Qc7 {[%clk 0:00:24]} 21. f5 {[%clk 0:00:45]}  exf5 {[%clk 0:00:23]} 22. gxf5 {[%clk 0:00:44]}  Bh5 {[%clk 0:00:23]} 23. Bf3 {[%clk 0:00:43]}  Bxf3 {[%clk 0:00:22]} 24. Nxf3 {[%clk 0:00:40]}  Rxd1 {[%clk 0:00:20]} 25. Rxd1 {[%clk 0:00:38]}  Re8 {[%clk 0:00:20]} 26. Qh2 {[%clk 0:00:35]}  Qb6 {[%clk 0:00:18]} 27. Qf2 {[%clk 0:00:31]}  Qc6 {[%clk 0:00:18]} 28. Nd5 {[%clk 0:00:28]}  Nce4 {[%clk 0:00:16]} 29. Qd4 {[%clk 0:00:27]}  Nxd5 {[%clk 0:00:13]} 30. cxd5 {[%clk 0:00:25]}  Qd6 {[%clk 0:00:14]} 31. Ne1 {[%clk 0:00:01]}  Qg3+ {[%clk 0:00:12]} 32. Ng2 {[%clk 0:00:00]}  Ng5 {[%clk 0:00:11]} 0-1


[Site "https://www.chess.com"]

[Event "Titled Tuesday Blitz May 16 Late 2023"]
[White "Vlassov, Nikolai"]
[Black "Skaric, Djuro"]
[WhiteFideId "4103360"]
[BlackFideId "934569"]
[WhiteElo "2324"]
[BlackElo "2282"]
[Result "1-0"]
[Round "01"]
[TimeControl "180+2"]
[Date "2023.05.16"]
[WhiteClock "0:00:29"]
[BlackClock "0:00:17"]

1. e4 {[%clk 0:02:58]}  d6 {[%clk 0:02:56]} 2. f4 {[%clk 0:02:55]}  Nc6 {[%clk 0:02:55]} 3. d4 {[%clk 0:02:53]}  g6 {[%clk 0:02:53]} 4. d5 {[%clk 0:02:52]}  Nb8 {[%clk 0:02:52]} 5. c4 {[%clk 0:02:46]}  Bg7 {[%clk 0:02:52]} 6. Nc3 {[%clk 0:02:45]}  c6 {[%clk 0:02:44]} 7. Nf3 {[%clk 0:02:45]}  Nf6 {[%clk 0:02:39]} 8. e5 {[%clk 0:02:43]}  Ng4 {[%clk 0:02:37]} 9. h3 {[%clk 0:02:41]}  Nh6 {[%clk 0:02:37]} 10. g4 {[%clk 0:02:39]}  dxe5 {[%clk 0:02:30]} 11. fxe5 {[%clk 0:02:38]}  O-O {[%clk 0:02:23]} 12. Bf4 {[%clk 0:02:35]}  Kh8 {[%clk 0:02:23]} 13. Qd2 {[%clk 0:02:33]}  Ng8 {[%clk 0:02:23]} 14. O-O-O {[%clk 0:02:28]}  cxd5 {[%clk 0:02:20]} 15. cxd5 {[%clk 0:02:28]}  Qa5 {[%clk 0:02:19]} 16. Kb1 {[%clk 0:02:26]}  Nd7 {[%clk 0:02:09]} 17. Bc4 {[%clk 0:02:25]}  a6 {[%clk 0:01:57]} 18. Ne4 {[%clk 0:02:20]}  Qxd2 {[%clk 0:01:41]} 19. Rxd2 {[%clk 0:02:19]}  b5 {[%clk 0:01:41]} 20. Bb3 {[%clk 0:02:18]}  Bb7 {[%clk 0:01:42]} 21. Rc1 {[%clk 0:02:17]}  Rac8 {[%clk 0:01:40]} 22. Rdc2 {[%clk 0:02:14]}  Nb6 {[%clk 0:01:37]} 23. Rxc8 {[%clk 0:01:53]}  Rxc8 {[%clk 0:01:35]} 24. Rxc8 {[%clk 0:01:53]}  Nxc8 {[%clk 0:01:35]} 25. Nc5 {[%clk 0:01:52]}  Ba8 {[%clk 0:01:26]} 26. Nxa6 {[%clk 0:01:51]}  Nb6 {[%clk 0:01:24]} 27. Nc7 {[%clk 0:01:51]}  Bb7 {[%clk 0:01:23]} 28. Nd4 {[%clk 0:01:41]}  Nc4 {[%clk 0:01:15]} 29. Ndxb5 {[%clk 0:01:27]}  Nxe5 {[%clk 0:01:11]} 30. Kc2 {[%clk 0:01:04]}  h6 {[%clk 0:01:07]} 31. a4 {[%clk 0:01:03]}  Nd7 {[%clk 0:01:00]} 32. Be3 {[%clk 0:00:53]}  Ngf6 {[%clk 0:00:49]} 33. a5 {[%clk 0:00:52]}  Nb8 {[%clk 0:00:50]} 34. Bc5 {[%clk 0:00:45]}  Na6 {[%clk 0:00:43]} 35. Bxe7 {[%clk 0:00:41]}  Ne4 {[%clk 0:00:40]} 36. Nxa6 {[%clk 0:00:37]}  Bxa6 {[%clk 0:00:39]} 37. Nc7 {[%clk 0:00:37]}  Bb7 {[%clk 0:00:26]} 38. a6 {[%clk 0:00:37]}  Bxa6 {[%clk 0:00:26]} 39. Nxa6 {[%clk 0:00:36]}  f5 {[%clk 0:00:27]} 40. gxf5 {[%clk 0:00:36]}  gxf5 {[%clk 0:00:26]} 41. d6 {[%clk 0:00:35]}  Bf6 {[%clk 0:00:23]} 42. Bxf6+ {[%clk 0:00:33]}  Nxf6 {[%clk 0:00:23]} 43. Be6 {[%clk 0:00:32]}  f4 {[%clk 0:00:20]} 44. d7 {[%clk 0:00:32]}  Nxd7 {[%clk 0:00:20]} 45. Bxd7 {[%clk 0:00:33]}  Kg7 {[%clk 0:00:21]} 46. b4 {[%clk 0:00:32]}  Kf6 {[%clk 0:00:22]} 47. Bc6 {[%clk 0:00:29]}  Ke5 {[%clk 0:00:21]} 48. b5 {[%clk 0:00:29]}  Kd6 {[%clk 0:00:22]} 49. Kd3 {[%clk 0:00:29]}  h5 {[%clk 0:00:21]} 50. Ke4 {[%clk 0:00:29]}  f3 {[%clk 0:00:22]} 51. Kxf3 {[%clk 0:00:30]}  Ke7 {[%clk 0:00:17]} 52. b6 {[%clk 0:00:29]} 1-0


[Site "https://www.chess.com"]

[Event "Titled Tuesday Blitz May 16 Late 2023"]
[White "Tisaj, Domen"]
[Black "Figorito, Nick"]
[WhiteFideId "14628708"]
[BlackFideId "30923689"]
[WhiteElo "2340"]
[BlackElo "2324"]
[Result "1/2-1/2"]
[Round "01"]
[TimeControl "180+2"]
[Date "2023.05.16"]
[WhiteClock "0:00:06"]
[BlackClock "0:00:09"]

1. e4 {[%clk 0:03:00]}  e6 {[%clk 0:03:00]} 2. d4 {[%clk 0:03:01]}  d5 {[%clk 0:03:01]} 3. exd5 {[%clk 0:03:01]}  exd5 {[%clk 0:03:01]} 4. h3 {[%clk 0:03:01]}  Bd6 {[%clk 0:03:02]} 5. Nf3 {[%clk 0:03:02]}  Ne7 {[%clk 0:03:02]} 6. c3 {[%clk 0:03:03]}  O-O {[%clk 0:03:02]} 7. Bd3 {[%clk 0:03:04]}  Bf5 {[%clk 0:03:00]} 8. O-O {[%clk 0:03:04]}  c6 {[%clk 0:02:59]} 9. Re1 {[%clk 0:03:04]}  Bxd3 {[%clk 0:02:59]} 10. Qxd3 {[%clk 0:03:05]}  Ng6 {[%clk 0:02:58]} 11. Bg5 {[%clk 0:03:05]}  f6 {[%clk 0:02:56]} 12. Be3 {[%clk 0:03:04]}  Nd7 {[%clk 0:02:55]} 13. Nbd2 {[%clk 0:03:04]}  Qc7 {[%clk 0:02:54]} 14. c4 {[%clk 0:02:52]}  dxc4 {[%clk 0:02:46]} 15. Nxc4 {[%clk 0:02:44]}  Nf4 {[%clk 0:02:32]} 16. Qb3 {[%clk 0:02:42]}  Nd5 {[%clk 0:02:11]} 17. Rac1 {[%clk 0:02:33]}  N7b6 {[%clk 0:02:02]} 18. Ncd2 {[%clk 0:02:23]}  Kh8 {[%clk 0:01:59]} 19. Ne4 {[%clk 0:02:20]}  Rae8 {[%clk 0:01:48]} 20. Nc5 {[%clk 0:02:18]}  Re7 {[%clk 0:01:40]} 21. a4 {[%clk 0:02:15]}  Rfe8 {[%clk 0:01:33]} 22. a5 {[%clk 0:02:09]}  Nc8 {[%clk 0:01:28]} 23. a6 {[%clk 0:02:04]}  b6 {[%clk 0:01:21]} 24. Nb7 {[%clk 0:01:25]}  Bf4 {[%clk 0:01:09]} 25. Bxf4 {[%clk 0:01:22]}  Rxe1+ {[%clk 0:01:07]} 26. Rxe1 {[%clk 0:01:22]}  Rxe1+ {[%clk 0:01:07]} 27. Nxe1 {[%clk 0:01:23]}  Qxf4 {[%clk 0:01:03]} 28. Qc4 {[%clk 0:01:12]}  Nce7 {[%clk 0:00:49]} 29. Nf3 {[%clk 0:01:09]}  h6 {[%clk 0:00:45]} 30. Nd8 {[%clk 0:01:02]}  Qc7 {[%clk 0:00:37]} 31. Nb7 {[%clk 0:00:44]}  Qf4 {[%clk 0:00:36]} 32. b4 {[%clk 0:00:31]}  Qe4 {[%clk 0:00:31]} 33. Kh2 {[%clk 0:00:14]}  Qf4+ {[%clk 0:00:30]} 34. Kg1 {[%clk 0:00:14]}  Qe4 {[%clk 0:00:30]} 35. Kh2 {[%clk 0:00:07]}  Qg6 {[%clk 0:00:31]} 36. b5 {[%clk 0:00:06]}  Nf4 {[%clk 0:00:30]} 37. g3 {[%clk 0:00:06]}  cxb5 {[%clk 0:00:28]} 38. Qc7 {[%clk 0:00:05]}  Nfd5 {[%clk 0:00:26]} 39. Qb8+ {[%clk 0:00:04]}  Kh7 {[%clk 0:00:25]} 40. Nd6 {[%clk 0:00:04]}  Qc2 {[%clk 0:00:23]} 41. Kg2 {[%clk 0:00:03]}  Ne3+ {[%clk 0:00:21]} 42. Kg1 {[%clk 0:00:03]}  Qd1+ {[%clk 0:00:19]} 43. Kh2 {[%clk 0:00:04]}  Qxf3 {[%clk 0:00:13]} 44. fxe3 {[%clk 0:00:04]}  Qf2+ {[%clk 0:00:13]} 45. Kh1 {[%clk 0:00:05]}  Qf1+ {[%clk 0:00:09]} 46. Kh2 {[%clk 0:00:05]}  Qf2+ {[%clk 0:00:10]} 47. Kh1 {[%clk 0:00:06]}  Qf1+ {[%clk 0:00:10]} 48. Kh2 {[%clk 0:00:06]}  Qf2+ {[%clk 0:00:09]} 1/2-1/2


[Site "https://www.chess.com"]

[Event "Titled Tuesday Blitz May 16 Late 2023"]
[White "Silvestre, Christian"]
[Black "TimGrutter03"]
[WhiteFideId "30956269"]
[WhiteElo "2313"]
[BlackElo "2632"]
[Result "0-1"]
[Round "01"]
[TimeControl "180+2"]
[Date "2023.05.16"]
[WhiteClock "0:00:49"]
[BlackClock "0:00:30"]

1. c4 {[%clk 0:02:50]}  g6 {[%clk 0:03:00]} 2. Nc3 {[%clk 0:02:50]}  Bg7 {[%clk 0:03:01]} 3. g3 {[%clk 0:02:48]}  d6 {[%clk 0:03:01]} 4. e3 {[%clk 0:02:46]}  Nc6 {[%clk 0:03:00]} 5. Bg2 {[%clk 0:02:46]}  e5 {[%clk 0:03:00]} 6. Nge2 {[%clk 0:02:45]}  f5 {[%clk 0:02:59]} 7. d4 {[%clk 0:02:43]}  e4 {[%clk 0:02:58]} 8. Rb1 {[%clk 0:02:35]}  a5 {[%clk 0:02:58]} 9. a3 {[%clk 0:02:35]}  Nf6 {[%clk 0:02:58]} 10. b4 {[%clk 0:02:34]}  axb4 {[%clk 0:02:59]} 11. axb4 {[%clk 0:02:34]}  O-O {[%clk 0:03:00]} 12. b5 {[%clk 0:02:34]}  Ne7 {[%clk 0:03:00]} 13. h4 {[%clk 0:02:31]}  d5 {[%clk 0:02:52]} 14. c5 {[%clk 0:02:27]}  c6 {[%clk 0:02:43]} 15. Qb3 {[%clk 0:02:26]}  Kh8 {[%clk 0:02:41]} 16. Nf4 {[%clk 0:02:26]}  Bh6 {[%clk 0:02:35]} 17. Bd2 {[%clk 0:02:21]}  Bxf4 {[%clk 0:02:34]} 18. exf4 {[%clk 0:02:20]}  Ng4 {[%clk 0:02:21]} 19. Nd1 {[%clk 0:02:18]}  Ng8 {[%clk 0:02:18]} 20. Ne3 {[%clk 0:02:17]}  N8f6 {[%clk 0:02:15]} 21. Bf1 {[%clk 0:02:13]}  Bd7 {[%clk 0:02:10]} 22. Nxg4 {[%clk 0:02:05]}  Nxg4 {[%clk 0:02:02]} 23. h5 {[%clk 0:02:03]}  Kg7 {[%clk 0:01:43]} 24. hxg6 {[%clk 0:02:00]}  hxg6 {[%clk 0:01:44]} 25. Be2 {[%clk 0:01:56]}  Rh8 {[%clk 0:01:41]} 26. Rxh8 {[%clk 0:01:40]}  Qxh8 {[%clk 0:01:40]} 27. Bxg4 {[%clk 0:01:39]}  fxg4 {[%clk 0:01:38]} 28. f5 {[%clk 0:01:34]}  gxf5 {[%clk 0:01:23]} 29. bxc6 {[%clk 0:01:28]}  Bxc6 {[%clk 0:01:22]} 30. Bf4 {[%clk 0:01:24]}  Qh1+ {[%clk 0:01:20]} 31. Kd2 {[%clk 0:01:23]}  Qg2 {[%clk 0:01:04]} 32. Be5+ {[%clk 0:01:13]}  Kg6 {[%clk 0:00:58]} 33. Qe3 {[%clk 0:01:04]}  Ra2+ {[%clk 0:00:54]} 34. Kc3 {[%clk 0:01:01]}  Rxf2 {[%clk 0:00:34]} 35. Bg7 {[%clk 0:00:49]}  Rf3 {[%clk 0:00:30]} 0-1


[Site "https://www.chess.com"]

[Event "Titled Tuesday Blitz May 16 Late 2023"]
[White "Celestino, Rafael Teixeira"]
[Black "Suder, Jakub"]
[WhiteFideId "2108925"]
[BlackFideId "1195310"]
[WhiteElo "2321"]
[BlackElo "2287"]
[Result "0-1"]
[Round "01"]
[TimeControl "180+2"]
[Date "2023.05.16"]
[WhiteClock "0:01:09"]
[BlackClock "0:00:15"]

1. e4 {[%clk 0:02:59]}  c5 {[%clk 0:02:56]} 2. Nf3 {[%clk 0:02:59]}  e6 {[%clk 0:02:56]} 3. d4 {[%clk 0:03:00]}  cxd4 {[%clk 0:02:57]} 4. Nxd4 {[%clk 0:03:01]}  Nc6 {[%clk 0:02:57]} 5. Nc3 {[%clk 0:03:01]}  Nf6 {[%clk 0:02:58]} 6. Be3 {[%clk 0:03:02]}  Bb4 {[%clk 0:02:58]} 7. Bd3 {[%clk 0:03:00]}  d5 {[%clk 0:02:58]} 8. exd5 {[%clk 0:02:59]}  Nxd5 {[%clk 0:02:58]} 9. Bd2 {[%clk 0:03:00]}  Nxd4 {[%clk 0:02:57]} 10. O-O {[%clk 0:03:00]}  Nc6 {[%clk 0:02:49]} 11. Qg4 {[%clk 0:02:54]}  Bf8 {[%clk 0:02:38]} 12. Ne4 {[%clk 0:02:53]}  Ne5 {[%clk 0:02:36]} 13. Qg3 {[%clk 0:02:52]}  Nxd3 {[%clk 0:02:36]} 14. Qxd3 {[%clk 0:02:51]}  Be7 {[%clk 0:02:33]} 15. Qg3 {[%clk 0:02:50]}  g6 {[%clk 0:02:21]} 16. Bh6 {[%clk 0:02:49]}  f5 {[%clk 0:02:20]} 17. Nd2 {[%clk 0:02:48]}  Kf7 {[%clk 0:02:18]} 18. Rfe1 {[%clk 0:02:47]}  Bd6 {[%clk 0:02:12]} 19. Qd3 {[%clk 0:02:42]}  Be7 {[%clk 0:02:03]} 20. Nf3 {[%clk 0:02:39]}  Bf6 {[%clk 0:02:00]} 21. Rad1 {[%clk 0:02:36]}  Qc7 {[%clk 0:01:52]} 22. Nd4 {[%clk 0:02:22]}  Bd7 {[%clk 0:01:45]} 23. c4 {[%clk 0:02:17]}  Nb6 {[%clk 0:01:42]} 24. Nf3 {[%clk 0:02:05]}  Rhd8 {[%clk 0:01:30]} 25. b3 {[%clk 0:02:05]}  Bc6 {[%clk 0:01:26]} 26. Qe2 {[%clk 0:02:05]}  Be4 {[%clk 0:01:22]} 27. Ng5+ {[%clk 0:02:01]}  Bxg5 {[%clk 0:01:20]} 28. Bxg5 {[%clk 0:02:02]}  Rxd1 {[%clk 0:01:19]} 29. Rxd1 {[%clk 0:02:02]}  h6 {[%clk 0:01:08]} 30. Be3 {[%clk 0:01:56]}  Rd8 {[%clk 0:01:02]} 31. Re1 {[%clk 0:01:57]}  Qd7 {[%clk 0:00:58]} 32. Bxh6 {[%clk 0:01:55]}  Qd3 {[%clk 0:00:55]} 33. Qb2 {[%clk 0:01:54]}  Qd4 {[%clk 0:00:53]} 34. Qc1 {[%clk 0:01:47]}  Rd7 {[%clk 0:00:44]} 35. h4 {[%clk 0:01:44]}  Bc6 {[%clk 0:00:40]} 36. h5 {[%clk 0:01:44]}  Qg4 {[%clk 0:00:38]} 37. hxg6+ {[%clk 0:01:39]}  Qxg6 {[%clk 0:00:38]} 38. g3 {[%clk 0:01:37]}  Qg4 {[%clk 0:00:31]} 39. Qc3 {[%clk 0:01:32]}  Qd4 {[%clk 0:00:21]} 40. Qc1 {[%clk 0:01:30]}  Qf6 {[%clk 0:00:19]} 41. Bg5 {[%clk 0:01:28]}  Qg6 {[%clk 0:00:19]} 42. Bf4 {[%clk 0:01:27]}  Rd8 {[%clk 0:00:18]} 43. Qe3 {[%clk 0:01:26]}  Rh8 {[%clk 0:00:16]} 44. f3 {[%clk 0:01:27]}  Nd7 {[%clk 0:00:13]} 45. b4 {[%clk 0:01:26]}  b6 {[%clk 0:00:12]} 46. b5 {[%clk 0:01:20]}  Bb7 {[%clk 0:00:12]} 47. a4 {[%clk 0:01:21]}  Nc5 {[%clk 0:00:12]} 48. a5 {[%clk 0:01:18]}  Qh5 {[%clk 0:00:12]} 49. g4 {[%clk 0:01:11]}  Qh1+ {[%clk 0:00:11]} 50. Kf2 {[%clk 0:01:10]}  Rh2+ {[%clk 0:00:12]} 51. Bxh2 {[%clk 0:01:11]}  Qxh2+ {[%clk 0:00:12]} 52. Kf1 {[%clk 0:01:12]}  fxg4 {[%clk 0:00:10]} 53. Qf2 {[%clk 0:01:10]}  Qh1+ {[%clk 0:00:09]} 54. Ke2 {[%clk 0:01:09]}  Qxf3+ {[%clk 0:00:09]} 55. Qxf3+ {[%clk 0:01:07]}  gxf3+ {[%clk 0:00:09]} 56. Ke3 {[%clk 0:01:08]}  e5 {[%clk 0:00:09]} 57. a6 {[%clk 0:01:08]}  Be4 {[%clk 0:00:08]} 58. Rh1 {[%clk 0:01:03]}  Kf6 {[%clk 0:00:08]} 59. Rh8 {[%clk 0:01:03]}  Bd3 {[%clk 0:00:08]} 60. Rc8 {[%clk 0:01:01]}  Bxc4 {[%clk 0:00:08]} 61. Rc6+ {[%clk 0:00:55]}  Ke7 {[%clk 0:00:07]} 62. Kxf3 {[%clk 0:00:56]}  Bd5+ {[%clk 0:00:06]} 63. Ke3 {[%clk 0:00:57]}  Bxc6 {[%clk 0:00:07]} 64. bxc6 {[%clk 0:00:57]}  Kd6 {[%clk 0:00:07]} 65. c7 {[%clk 0:00:57]}  Kxc7 {[%clk 0:00:08]} 66. Kd2 {[%clk 0:00:57]}  Kc6 {[%clk 0:00:09]} 67. Kc3 {[%clk 0:00:58]}  Kb5 {[%clk 0:00:09]} 68. Kc2 {[%clk 0:00:58]}  Kxa6 {[%clk 0:00:10]} 69. Kc3 {[%clk 0:00:59]}  Kb5 {[%clk 0:00:11]} 70. Kc2 {[%clk 0:00:59]}  a5 {[%clk 0:00:12]} 71. Kc3 {[%clk 0:01:00]}  a4 {[%clk 0:00:12]} 72. Kc2 {[%clk 0:01:01]}  Kc4 {[%clk 0:00:13]} 73. Kb2 {[%clk 0:01:02]}  b5 {[%clk 0:00:13]} 74. Ka3 {[%clk 0:01:03]}  b4+ {[%clk 0:00:13]} 75. Kb2 {[%clk 0:01:04]}  e4 {[%clk 0:00:13]} 76. Ka2 {[%clk 0:01:05]}  e3 {[%clk 0:00:14]} 77. Kb2 {[%clk 0:01:06]}  e2 {[%clk 0:00:15]} 78. Ka2 {[%clk 0:01:06]}  e1=Q {[%clk 0:00:15]} 79. Kb2 {[%clk 0:01:07]}  Qc3+ {[%clk 0:00:15]} 80. Kb1 {[%clk 0:01:08]}  Qd3+ {[%clk 0:00:14]} 81. Ka2 {[%clk 0:01:08]}  Qc2+ {[%clk 0:00:14]} 82. Ka1 {[%clk 0:01:09]}  Nb3# {[%clk 0:00:15]} 0-1


[Site "https://www.chess.com"]

[Event "Titled Tuesday Blitz May 16 Late 2023"]
[White "Kostiukov, Alexandr"]
[Black "Koellner, Ruben Gideon"]
[WhiteFideId "14108100"]
[BlackFideId "12993093"]
[WhiteElo "2202"]
[BlackElo "2314"]
[Result "1-0"]
[Round "01"]
[TimeControl "180+2"]
[Date "2023.05.16"]
[WhiteClock "0:00:13"]
[BlackClock "0:00:11"]

1. g3 {[%clk 0:02:56]}  d6 {[%clk 0:03:00]} 2. Bg2 {[%clk 0:02:57]}  Nf6 {[%clk 0:01:51]} 3. d4 {[%clk 0:02:56]}  Nbd7 {[%clk 0:01:51]} 4. c4 {[%clk 0:02:56]}  e5 {[%clk 0:01:52]} 5. Nf3 {[%clk 0:02:54]}  Be7 {[%clk 0:01:49]} 6. O-O {[%clk 0:02:53]}  c6 {[%clk 0:01:49]} 7. Nc3 {[%clk 0:02:27]}  O-O {[%clk 0:01:47]} 8. e4 {[%clk 0:02:26]}  a6 {[%clk 0:01:47]} 9. h3 {[%clk 0:02:23]}  b5 {[%clk 0:01:47]} 10. c5 {[%clk 0:02:18]}  exd4 {[%clk 0:01:41]} 11. Nxd4 {[%clk 0:02:12]}  Bb7 {[%clk 0:01:24]} 12. cxd6 {[%clk 0:02:04]}  Bxd6 {[%clk 0:01:25]} 13. Nf5 {[%clk 0:01:59]}  Be5 {[%clk 0:01:21]} 14. f4 {[%clk 0:01:51]}  Bxc3 {[%clk 0:01:19]} 15. bxc3 {[%clk 0:01:51]}  c5 {[%clk 0:01:15]} 16. Nd6 {[%clk 0:01:50]}  Bc6 {[%clk 0:01:14]} 17. Be3 {[%clk 0:01:36]}  Qc7 {[%clk 0:01:09]} 18. e5 {[%clk 0:01:32]}  Bxg2 {[%clk 0:01:09]} 19. Kxg2 {[%clk 0:01:32]}  Ne8 {[%clk 0:01:05]} 20. Ne4 {[%clk 0:01:24]}  Rc8 {[%clk 0:00:29]} 21. Qd5 {[%clk 0:01:12]}  Nb6 {[%clk 0:00:28]} 22. Qd3 {[%clk 0:00:32]}  Qb7 {[%clk 0:00:26]} 23. Kh2 {[%clk 0:00:30]}  c4 {[%clk 0:00:25]} 24. Qc2 {[%clk 0:00:27]}  Nd5 {[%clk 0:00:24]} 25. Ng5 {[%clk 0:00:21]}  g6 {[%clk 0:00:20]} 26. Bd4 {[%clk 0:00:21]}  Nec7 {[%clk 0:00:19]} 27. Rae1 {[%clk 0:00:20]}  Ne6 {[%clk 0:00:19]} 28. Ne4 {[%clk 0:00:20]}  Nxd4 {[%clk 0:00:18]} 29. cxd4 {[%clk 0:00:20]}  Qb6 {[%clk 0:00:18]} 30. Nd6 {[%clk 0:00:20]}  Qxd4 {[%clk 0:00:17]} 31. Rd1 {[%clk 0:00:20]}  Qc5 {[%clk 0:00:16]} 32. Ne4 {[%clk 0:00:19]}  Qc6 {[%clk 0:00:15]} 33. Rxd5 {[%clk 0:00:19]}  Rcd8 {[%clk 0:00:12]} 34. Nf6+ {[%clk 0:00:18]}  Kg7 {[%clk 0:00:12]} 35. Rfd1 {[%clk 0:00:17]}  Rxd5 {[%clk 0:00:12]} 36. Rxd5 {[%clk 0:00:17]}  Rc8 {[%clk 0:00:12]} 37. h4 {[%clk 0:00:15]}  h5 {[%clk 0:00:11]} 38. f5 {[%clk 0:00:14]}  b4 {[%clk 0:00:10]} 39. Qd2 {[%clk 0:00:14]}  Rc7 {[%clk 0:00:09]} 40. Qg5 {[%clk 0:00:14]}  Kf8 {[%clk 0:00:08]} 41. Qh6+ {[%clk 0:00:13]}  Ke7 {[%clk 0:00:09]} 42. Qh8 {[%clk 0:00:11]}  Rc8 {[%clk 0:00:08]} 43. Qg7 {[%clk 0:00:10]}  c3 {[%clk 0:00:06]} 44. Rd7+ {[%clk 0:00:10]}  Qxd7 {[%clk 0:00:06]} 45. Nxd7 {[%clk 0:00:11]}  Kxd7 {[%clk 0:00:07]} 46. Qxf7+ {[%clk 0:00:11]}  Kc6 {[%clk 0:00:07]} 47. Qxg6+ {[%clk 0:00:09]}  Kb7 {[%clk 0:00:07]} 48. Qf7+ {[%clk 0:00:09]}  Rc7 {[%clk 0:00:07]} 49. Qd5+ {[%clk 0:00:09]}  Kb8 {[%clk 0:00:04]} 50. Qd1 {[%clk 0:00:10]}  c2 {[%clk 0:00:04]} 51. Qc1 {[%clk 0:00:10]}  a5 {[%clk 0:00:05]} 52. f6 {[%clk 0:00:09]}  a4 {[%clk 0:00:05]} 53. e6 {[%clk 0:00:10]}  b3 {[%clk 0:00:05]} 54. axb3 {[%clk 0:00:10]}  axb3 {[%clk 0:00:06]} 55. f7 {[%clk 0:00:11]}  Ka7 {[%clk 0:00:04]} 56. f8=Q {[%clk 0:00:10]}  b2 {[%clk 0:00:05]} 57. Qa3+ {[%clk 0:00:09]}  Kb6 {[%clk 0:00:05]} 58. Qaxb2+ {[%clk 0:00:10]}  Kc6 {[%clk 0:00:06]} 59. Qbxc2+ {[%clk 0:00:10]}  Kd6 {[%clk 0:00:07]} 60. Qxc7+ {[%clk 0:00:10]}  Kd5 {[%clk 0:00:08]} 61. Q7f4 {[%clk 0:00:10]}  Kxe6 {[%clk 0:00:08]} 62. Qe1+ {[%clk 0:00:11]}  Kd7 {[%clk 0:00:09]} 63. Qfd2+ {[%clk 0:00:11]}  Kc6 {[%clk 0:00:09]} 64. Qec1+ {[%clk 0:00:12]}  Kb7 {[%clk 0:00:10]} 65. Qdb2+ {[%clk 0:00:12]}  Ka8 {[%clk 0:00:11]} 66. Qca1# {[%clk 0:00:13]} 1-0


[Site "https://www.chess.com"]

[Event "Titled Tuesday Blitz May 16 Late 2023"]
[White "Melikyan, Gnel"]
[Black "Vifleemskaia, Svetlana"]
[WhiteFideId "54109990"]
[BlackFideId "4129490"]
[WhiteElo "2138"]
[BlackElo "1930"]
[Result "1-0"]
[Round "01"]
[TimeControl "180+2"]
[Date "2023.05.16"]
[WhiteClock "0:01:39"]
[BlackClock "0:00:31"]

1. e4 {[%clk 0:02:58]}  e5 {[%clk 0:02:59]} 2. Nf3 {[%clk 0:02:58]}  Nc6 {[%clk 0:02:56]} 3. d4 {[%clk 0:02:54]}  exd4 {[%clk 0:02:55]} 4. Nxd4 {[%clk 0:02:55]}  Bb4+ {[%clk 0:02:54]} 5. c3 {[%clk 0:02:54]}  Bc5 {[%clk 0:02:54]} 6. Be3 {[%clk 0:02:52]}  Bb6 {[%clk 0:02:54]} 7. Na3 {[%clk 0:02:51]}  Nf6 {[%clk 0:02:53]} 8. Bd3 {[%clk 0:02:43]}  d5 {[%clk 0:02:52]} 9. Nxc6 {[%clk 0:02:38]}  bxc6 {[%clk 0:02:51]} 10. Bxb6 {[%clk 0:02:32]}  axb6 {[%clk 0:02:50]} 11. exd5 {[%clk 0:02:29]}  Qxd5 {[%clk 0:02:39]} 12. O-O {[%clk 0:02:27]}  O-O {[%clk 0:02:38]} 13. Nc2 {[%clk 0:02:19]}  Ba6 {[%clk 0:02:27]} 14. Nb4 {[%clk 0:02:11]}  Qxd3 {[%clk 0:02:16]} 15. Nxd3 {[%clk 0:02:06]}  Rfd8 {[%clk 0:02:06]} 16. Qf3 {[%clk 0:02:05]}  Bxd3 {[%clk 0:02:02]} 17. Rfd1 {[%clk 0:02:02]}  Be4 {[%clk 0:02:02]} 18. Rxd8+ {[%clk 0:02:01]}  Rxd8 {[%clk 0:02:02]} 19. Rd1 {[%clk 0:02:01]}  Re8 {[%clk 0:01:46]} 20. Qf4 {[%clk 0:01:59]}  Nd5 {[%clk 0:01:25]} 21. Qg3 {[%clk 0:01:51]}  Bc2 {[%clk 0:01:17]} 22. Rc1 {[%clk 0:01:51]}  h6 {[%clk 0:01:10]} 23. h3 {[%clk 0:01:49]}  Re2 {[%clk 0:00:55]} 24. c4 {[%clk 0:01:45]}  Nb4 {[%clk 0:00:51]} 25. Qxc7 {[%clk 0:01:42]}  Nd3 {[%clk 0:00:48]} 26. Qc8+ {[%clk 0:01:41]}  Kh7 {[%clk 0:00:31]} 27. Rxc2 {[%clk 0:01:39]} 1-0


[Site "https://www.chess.com"]